bitfinex/quotes_BTCUSD_20250519
["timestamp","ask_amount","ask_price","bid_price","bid_amount"]
[1747658095264,0.50748427,102490.0,102480.0,0.8313084]
[1747658095471,0.50748427,102490.0,102480.0,0.8410663]
[1747658095673,0.50748427,102490.0,102480.0,0.8313084]
[1747658095884,0.31196427,102490.0,102480.0,0.8313084]
[1747658096128,0.50748427,102490.0,102480.0,0.83598025]
[1747658096699,0.50848427,102490.0,102480.0,0.83598025]
[1747658096919,0.50848427,102490.0,102480.0,0.84573815]
[1747658098292,0.49872742,102490.0,102480.0,0.63106222]
[1747658098496,0.49868742,102490.0,102480.0,0.82622225]
[1747658098921,0.49868742,102490.0,102480.0,0.83598025]
[1747658099521,0.49868742,102490.0,102480.0,0.64082022]
[1747658099978,0.49868742,102490.0,102480.0,0.63106222]
[1747658100422,0.49868742,102490.0,102480.0,0.83598015]
[1747658102808,0.49868742,102490.0,102480.0,1.32622225]
[1747658103202,0.48893038,102490.0,102480.0,1.32622225]
[1747658104626,0.48893038,102490.0,102480.0,1.13106222]
[1747658105682,0.29345038,102490.0,102480.0,1.32622225]
[1747658105853,0.48889038,102490.0,102480.0,1.32622225]
[1747658106074,0.48889038,102490.0,102480.0,1.13106222]
[1747658107042,0.68433038,102490.0,102480.0,1.11526222]
[1747658107937,0.68433038,102490.0,102480.0,0.77526222]
[1747658109742,0.69408742,102490.0,102480.0,0.98702225]
[1747658109955,0.21599304,102490.0,102480.0,1.6078189]
[1747658110156,0.61629087,102490.0,102480.0,1.59806157]
[1747658110402,0.61629087,102490.0,102480.0,1.60781909]
[1747658110995,0.61629087,102490.0,102480.0,1.61081909]
[1747658111436,0.41981087,102490.0,102480.0,1.61081909]
[1747658111609,0.41981087,102490.0,102480.0,1.61381909]
[1747658111815,0.41981087,102490.0,102480.0,1.59430395]
[1747658112015,0.50736389,102490.0,102480.0,1.13786222]
[1747658112856,0.50736389,102490.0,102480.0,1.12126222]
[1747658113457,0.49760723,102490.0,102480.0,1.12126222]
[1747658114053,0.49760723,102490.0,102480.0,0.51393833]
[1747658114227,0.51310723,102490.0,102480.0,0.51393833]
[1747658114647,0.30220723,102490.0,102480.0,0.76079037]
[1747658114864,0.69296723,102490.0,102480.0,0.77579037]
[1747658115057,0.69296723,102490.0,102480.0,1.59718981]
[1747658115335,0.61517097,102490.0,102480.0,1.5874321]
[1747658116220,0.61517097,102490.0,102480.0,1.57767429]
[1747658116430,0.69296733,102490.0,102480.0,1.13099037]
[1747658116649,0.69296733,102490.0,102480.0,1.11579037]
[1747658116850,1.53097748,102490.0,102480.0,0.46066923]
[1747658117057,6.57949937,102490.0,102480.0,0.46066923]
[1747658117259,6.99955637,102490.0,102480.0,0.46066923]
[1747658117734,0.76390647,102480.0,102470.0,0.00467185]
[1747658117942,0.21473821,102450.0,102440.0,0.00467185]
[1747658118149,0.70276761,102450.0,102440.0,0.00476585]
[1747658119540,0.70276761,102450.0,102440.0,0.00776585]
[1747658119818,0.70276761,102450.0,102440.0,0.003094]
[1747658121644,0.9542915,102450.0,102440.0,0.003094]
[1747658122497,0.9542915,102450.0,102440.0,9.4e-05]
[1747658122754,0.9562915,102450.0,102440.0,9.4e-05]
[1747658122957,0.70476761,102450.0,102440.0,9.4e-05]
[1747658123160,0.70580761,102450.0,102440.0,9.4e-05]
[1747658124144,0.9573315,102450.0,102440.0,9.4e-05]
[1747658124340,0.9593315,102450.0,102440.0,9.4e-05]
[1747658129538,0.70780761,102450.0,102440.0,9.4e-05]
[1747658129674,1.40620761,102450.0,102440.0,9.4e-05]
[1747658130412,1.20988761,102450.0,102440.0,9.4e-05]
[1747658130666,1.01444761,102450.0,102440.0,9.4e-05]
[1747658130847,1.40608761,102450.0,102440.0,9.4e-05]
[1747658132329,0.70768761,102450.0,102440.0,9.4e-05]
[1747658133723,0.70756761,102450.0,102440.0,9.4e-05]
[1747658136795,0.70642947,102450.0,102440.0,9.4e-05]
[1747658141760,0.31490947,102450.0,102440.0,0.28321789]
[1747658141977,0.70586947,102450.0,102440.0,0.28321789]
[1747658142186,0.70606947,102450.0,102440.0,0.031694]
[1747658142881,0.70610947,102450.0,102440.0,0.031694]
[1747658143077,0.70610947,102450.0,102440.0,0.03481687]
[1747658144277,0.31490947,102450.0,102440.0,0.00321687]
[1747658144477,0.70582947,102450.0,102440.0,0.00321687]
[1747658144858,0.78326256,102450.0,102440.0,0.00321687]
[1747658147470,0.70582947,102450.0,102440.0,0.00321687]
[1747658148608,1.08476276,102450.0,102440.0,0.00321687]
[1747658149030,0.72082947,102450.0,102440.0,0.00321687]
[1747658149452,0.70622947,102450.0,102440.0,0.00321687]
[1747658149679,0.70422947,102450.0,102440.0,0.00321687]
[1747658149910,0.70222947,102450.0,102440.0,0.01831687]
[1747658150138,0.70522947,102450.0,102440.0,0.01831687]
[1747658150394,0.70526947,102450.0,102440.0,0.03401687]
[1747658150630,0.70826947,102450.0,102440.0,0.03401687]
[1747658151554,0.70826947,102450.0,102440.0,0.01831687]
[1747658151768,0.70826947,102450.0,102440.0,0.00321687]
[1747658151989,0.72476947,102450.0,102440.0,0.00321687]
[1747658152212,1.40952645,102450.0,102440.0,0.00321687]
[1747658153051,1.01816645,102450.0,102440.0,0.00321687]
[1747658153268,1.40960645,102450.0,102440.0,0.00321687]
[1747658153918,1.67567119,102450.0,102440.0,0.00321687]
[1747658154356,1.67567119,102450.0,102430.0,0.00350568]
[1747658154357,0.25629785,102440.0,102430.0,0.00350568]
[1747658154560,0.25629785,102440.0,102430.0,0.00365041]
[1747658154561,1.33710528,102440.0,102430.0,0.00365041]
[1747658154780,1.3648769,102440.0,102430.0,0.00365041]
[1747658154998,1.39117848,102440.0,102430.0,0.00365041]
[1747658155455,1.13965459,102440.0,102430.0,0.00014473]
[1747658155662,1.14565459,102440.0,102430.0,0.00114473]
[1747658155878,1.10158139,102440.0,102430.0,0.00114473]
[1747658156290,0.19533157,102390.0,102380.0,0.48686066]
[1747658156555,0.69400745,102390.0,102380.0,0.47156206]
[1747658157306,0.69388637,102390.0,102380.0,0.47156206]
[1747658157866,0.69488637,102390.0,102380.0,0.47656206]
[1747658158317,0.69488637,102390.0,102380.0,0.01015468]
[1747658158700,0.69488637,102390.0,102380.0,0.20550533]
[1747658158910,0.71593923,102390.0,102380.0,0.48156399]
[1747658159111,0.70629374,102390.0,102380.0,0.49133104]
[1747658159419,0.51073374,102390.0,102380.0,0.25257286]
[1747658159600,0.51073374,102390.0,102380.0,0.50409675]
[1747658160024,0.51073374,102390.0,102380.0,0.51386418]
[1747658160226,0.51073374,102390.0,102380.0,0.50409675]
[1747658160427,0.30440745,102390.0,102380.0,0.03135468]
[1747658160601,0.69700745,102390.0,102380.0,0.03135468]
[1747658161633,0.69740745,102390.0,102380.0,0.03135468]
[1747658162909,0.69740745,102390.0,102380.0,0.28287857]
[1747658163299,0.69740745,102390.0,102380.0,0.03135468]
[1747658164196,0.69740745,102390.0,102380.0,0.01048283]
[1747658165719,0.71400745,102390.0,102380.0,0.01048283]
[1747658165889,0.74177907,102390.0,102380.0,0.01048283]
[1747658166032,0.72517907,102390.0,102380.0,0.01048283]
[1747658166239,0.69740745,102390.0,102380.0,0.26200672]
[1747658166667,0.69740745,102390.0,102380.0,0.01048283]
[1747658166933,0.69740745,102390.0,102380.0,0.01360709]
[1747658167087,0.69640745,102390.0,102380.0,0.00860709]
[1747658167481,0.69740745,102390.0,102380.0,0.01260709]
[1747658167751,0.69640745,102390.0,102380.0,0.00760709]
[1747658168197,0.49892745,102390.0,102380.0,0.00760709]
[1747658168460,0.69556745,102390.0,102380.0,0.25513098]
[1747658168649,0.30240745,102390.0,102380.0,0.25713098]
[1747658168823,0.69548745,102390.0,102380.0,0.25713098]
[1747658169821,1.05098745,102390.0,102380.0,0.00560709]
[1747658170052,1.06728745,102390.0,102380.0,0.00560709]
[1747658170577,1.06728745,102390.0,102380.0,0.00760709]
[1747658171543,1.09505907,102390.0,102380.0,0.00760709]
[1747658171753,1.49355383,102390.0,102380.0,0.00760709]
[1747658171981,1.24202994,102390.0,102380.0,0.00760709]
[1747658172414,1.24202994,102390.0,102380.0,0.00448283]
[1747658172833,1.14472054,102390.0,102380.0,0.00448283]
[1747658173053,1.06728745,102390.0,102380.0,0.00248283]
[1747658173250,1.06728745,102390.0,102380.0,0.25400672]
[1747658173251,1.03748745,102390.0,102380.0,0.25400672]
[1747658173680,1.03748745,102390.0,102380.0,0.00248283]
[1747658174043,0.64240745,102390.0,102380.0,0.00048283]
[1747658174245,1.03836745,102390.0,102380.0,0.00048283]
[1747658174467,0.30540745,102390.0,102380.0,0.27133119]
[1747658174667,0.30540745,102390.0,102380.0,0.28743119]
[1747658174891,0.70064745,102390.0,102380.0,0.28743119]
[1747658175609,0.30540745,102390.0,102380.0,0.28743119]
[1747658175803,0.70037045,102390.0,102380.0,0.28743119]
[1747658176539,0.77680354,102390.0,102380.0,0.0036073]
[1747658177567,0.69937045,102390.0,102380.0,0.27083119]
[1747658177779,0.69737045,102390.0,102380.0,0.27083119]
[1747658177944,0.69773045,102390.0,102380.0,0.27083119]
[1747658178140,0.69773045,102390.0,102380.0,0.27183119]
[1747658178536,0.30225045,102390.0,102380.0,0.0203073]
[1747658178763,0.69773045,102390.0,102380.0,0.0046073]
[1747658181531,1.06903045,102390.0,102380.0,0.0046073]
[1747658182364,1.06903045,102390.0,102380.0,0.00148283]
[1747658187337,1.05273045,102390.0,102380.0,0.00148283]
[1747658187553,0.64225045,102390.0,102380.0,0.00148283]
[1747658187760,1.03737045,102390.0,102380.0,0.00148283]
[1747658190563,0.20511799,102380.0,102370.0,0.27880672]
[1747658190780,0.30242739,102380.0,102370.0,0.24809955]
[1747658190978,0.30242739,102380.0,102370.0,0.00321797]
[1747658191176,0.31792739,102380.0,102370.0,0.00321797]
[1747658191415,0.30242739,102380.0,102370.0,0.00321797]
[1747658191695,0.30242739,102380.0,102370.0,0.01971797]
[1747658191895,0.30242739,102380.0,102370.0,0.02371797]
[1747658192093,0.30242739,102380.0,102370.0,0.27524186]
[1747658192299,0.69746739,102380.0,102370.0,0.27524186]
[1747658192949,0.69746739,102380.0,102370.0,0.02059283]
[1747658193890,0.69718739,102380.0,102370.0,0.02059283]
[1747658194342,0.69718739,102380.0,102370.0,0.03599283]
[1747658194574,0.69718739,102380.0,102370.0,0.28751672]
[1747658194778,0.30242739,102380.0,102370.0,0.28751672]
[1747658195117,0.69710739,102380.0,102370.0,0.28751672]
[1747658196117,0.69702739,102380.0,102370.0,0.28751672]
[1747658196643,0.30242739,102380.0,102370.0,0.28751672]
[1747658196849,0.69694739,102380.0,102370.0,0.28751672]
[1747658199434,0.69694739,102380.0,102370.0,0.29064155]
[1747658200005,0.68718005,102380.0,102370.0,0.25152389]
[1747658201463,0.48942005,102380.0,102370.0,0.25152389]
[1747658203072,0.48942005,102380.0,102370.0,0.28382389]
[1747658204938,0.48927995,102380.0,102370.0,0.28382389]
[1747658205149,0.48932643,102380.0,102370.0,0.28382389]
[1747658205769,0.48932643,102380.0,102370.0,0.0323]
[1747658206216,0.22469598,102360.0,102350.0,0.03014085]
[1747658206439,0.22469598,102360.0,102350.0,0.62180949]
[1747658206874,0.22469598,102360.0,102350.0,0.63790949]
[1747658207110,0.22469598,102360.0,102350.0,0.84308779]
[1747658207320,0.22469598,102360.0,102350.0,0.64767988]
[1747658207655,0.22469598,102360.0,102350.0,0.85281161]
[1747658208183,0.22669598,102360.0,102350.0,0.86281161]
[1747658210243,0.19544299,102340.0,102310.0,0.19696]
[1747658210559,0.22475512,102340.0,102330.0,1.05808309]
[1747658210970,0.50370756,102360.0,102340.0,0.55496921]
[1747658211129,0.21692664,102360.0,102350.0,0.79914458]
[1747658211486,0.23446523,102360.0,102350.0,0.59152389]
[1747658212326,0.23446523,102360.0,102350.0,0.59464883]
[1747658213385,0.23446523,102360.0,102350.0,0.82932713]
[1747658213621,0.22469579,102360.0,102350.0,0.83909743]
[1747658213850,0.00976877,102360.0,102350.0,0.87317839]
[1747658214070,0.21492655,102360.0,102350.0,0.87317839]
[1747658214293,0.01076877,102360.0,102350.0,0.88294754]
[1747658214519,0.001,102360.0,102350.0,1.13447143]
[1747658214978,0.002,102360.0,102350.0,1.13447143]
[1747658215185,0.21692664,102360.0,102350.0,0.87317772]
[1747658215399,0.02153773,102360.0,102350.0,0.87317772]
[1747658215630,0.02153773,102360.0,102350.0,0.8634081]
[1747658215631,0.2266957,102360.0,102350.0,0.8634081]
[1747658215838,0.2266957,102360.0,102350.0,0.88294764]
[1747658216062,0.2266957,102360.0,102350.0,0.8634081]
[1747658216279,0.23646504,102360.0,102350.0,0.87317801]
[1747658216931,0.2266957,102360.0,102350.0,0.88294783]
[1747658217399,0.2266957,102360.0,102350.0,0.62414883]
[1747658217595,0.21692722,102360.0,102350.0,0.61074883]
[1747658218176,0.20715807,102360.0,102350.0,0.59464883]
[1747658218376,0.20715807,102360.0,102350.0,0.59817485]
[1747658218594,0.20715807,102360.0,102350.0,0.34665096]
[1747658220712,0.20715807,102360.0,102350.0,0.34312494]
[1747658221515,0.30446747,102360.0,102350.0,0.34312494]
[1747658221725,0.54544747,102360.0,102350.0,0.34312494]
[1747658221989,0.52884747,102360.0,102350.0,0.34312494]
[1747658222130,0.51354747,102360.0,102350.0,0.34312494]
[1747658222345,0.31446747,102360.0,102350.0,0.34312494]
[1747658222586,0.51354747,102360.0,102350.0,0.35922494]
[1747658222730,0.40623807,102360.0,102350.0,0.36899533]
[1747658222925,0.20715807,102360.0,102350.0,0.35922494]
[1747658223370,0.20715807,102360.0,102350.0,0.36899533]
[1747658223747,0.20715807,102360.0,102350.0,0.35922494]
[1747658223948,0.20715807,102360.0,102350.0,0.34312494]
[1747658224591,0.002,102360.0,102350.0,0.61228373]
[1747658224855,0.002,102360.0,102350.0,0.6393776]
[1747658225634,0.27691309,102380.0,102370.0,0.21490602]
[1747658225841,0.38942249,102380.0,102370.0,0.21490602]
[1747658226179,0.38942249,102380.0,102370.0,0.22779887]
[1747658226368,0.29211309,102380.0,102370.0,0.23756668]
[1747658226563,0.3964,102390.0,102380.0,0.22465209]
[1747658226767,0.2968694,102390.0,102380.0,0.23446702]
[1747658226936,0.3126694,102390.0,102380.0,0.23446702]
[1747658227344,0.3288694,102390.0,102380.0,0.23759196]
[1747658227966,0.33863521,102390.0,102380.0,0.22782529]
[1747658228161,0.34840112,102390.0,102380.0,0.21805843]
[1747658228387,0.35816712,102390.0,102380.0,0.22782529]
[1747658228588,0.14884112,102390.0,102380.0,0.20829128]
[1747658228789,0.36785379,102390.0,102380.0,0.21805852]
[1747658229148,0.35808731,102390.0,102380.0,0.20829128]
[1747658229281,0.37085379,102390.0,102380.0,0.21905852]
[1747658229487,0.36108731,102390.0,102380.0,0.23859253]
[1747658229689,0.15184112,102390.0,102380.0,0.22882567]
[1747658229918,0.56306498,102390.0,102380.0,0.22782567]
[1747658230156,0.13907531,102390.0,102380.0,0.24735949]
[1747658230292,0.3579676,102390.0,102380.0,0.24735949]
[1747658230504,0.34820131,102390.0,102380.0,0.24735949]
[1747658230707,0.3589675,102390.0,102380.0,0.24735949]
[1747658230906,0.3589675,102390.0,102380.0,0.61760034]
[1747658230907,0.001,102390.0,102380.0,0.61760034]
[1747658232347,0.01076572,102390.0,102380.0,0.61760034]
[1747658232543,0.01376591,102390.0,102380.0,0.61860034]
[1747658232750,0.02353181,102390.0,102380.0,0.61860034]
[1747658233391,0.02353181,102390.0,102380.0,0.61760034]
[1747658233606,0.001,102390.0,102380.0,0.63100034]
[1747658233812,0.001,102390.0,102380.0,0.63569143]
[1747658233985,0.002,102390.0,102380.0,0.63569143]
[1747658234551,0.002,102390.0,102380.0,0.63527651]
[1747658234764,0.001,102390.0,102380.0,0.63527651]
[1747658236331,0.001,102390.0,102380.0,0.63058542]
[1747658236698,0.03906009,102400.0,102390.0,0.579171]
[1747658237308,0.24696424,102390.0,102380.0,0.0051732]
[1747658237551,0.43170673,102390.0,102380.0,0.0051732]
[1747658237722,0.43170673,102390.0,102380.0,0.0031732]
[1747658238137,0.43170673,102390.0,102380.0,4.826e-05]
[1747658238915,0.43270673,102390.0,102380.0,0.00504826]
[1747658239356,0.43170673,102390.0,102380.0,4.826e-05]
[1747658240593,0.35427364,102390.0,102380.0,0.0031732]
[1747658240753,0.55475364,102390.0,102380.0,0.0031732]
[1747658241098,0.75419364,102390.0,102380.0,0.0031732]
[1747658241314,0.75499364,102390.0,102380.0,0.0031732]
[1747658241523,0.75699364,102390.0,102380.0,0.0081732]
[1747658242112,0.75699364,102390.0,102380.0,0.01168537]
[1747658242458,0.35707364,102390.0,102380.0,0.01168537]
[1747658242662,0.55811364,102390.0,102380.0,0.01168537]
[1747658243559,0.63554673,102390.0,102380.0,0.01168537]
[1747658243814,0.87743577,102390.0,102380.0,0.01168537]
[1747658244013,0.62554673,102390.0,102380.0,0.01168537]
[1747658244425,1.21743577,102390.0,102380.0,0.01168537]
[1747658244644,1.63923577,102390.0,102380.0,0.01168537]
[1747658245071,1.63823577,102390.0,102380.0,0.00968537]
[1747658245788,1.63723577,102390.0,102380.0,0.00668537]
[1747658245992,1.40299409,102390.0,102380.0,4.826e-05]
[1747658246163,1.38534673,102390.0,102380.0,0.00104826]
[1747658246386,1.38634673,102390.0,102380.0,0.00104826]
[1747658247391,1.63823577,102390.0,102380.0,0.00104826]
[1747658247664,1.64901459,102390.0,102380.0,0.00104826]
[1747658248277,1.5715815,102390.0,102380.0,4.826e-05]
[1747658248427,1.30891364,102390.0,102380.0,4.826e-05]
[1747658249260,1.10787364,102390.0,102380.0,4.826e-05]
[1747658249471,0.97715364,102390.0,102380.0,4.826e-05]
[1747658249873,1.19343364,102390.0,102380.0,4.826e-05]
[1747658250160,1.19643364,102390.0,102380.0,0.00104826]
[1747658250369,1.19543364,102390.0,102380.0,0.00104826]
[1747658250569,0.98615364,102390.0,102380.0,0.00104826]
[1747658250775,1.20259364,102390.0,102380.0,0.00104826]
[1747658252315,1.20559364,102390.0,102380.0,0.00204826]
[1747658252521,0.98915364,102390.0,102380.0,0.00204826]
[1747658252751,1.20539364,102390.0,102380.0,0.00204826]
[1747658254408,0.77287364,102390.0,102380.0,0.00204826]
[1747658254614,1.20503364,102390.0,102380.0,0.00204826]
[1747658260585,1.20484151,102390.0,102380.0,0.00204826]
[1747658261022,0.00976858,102360.0,102340.0,0.00806049]
[1747658261243,0.6766741,102290.0,102270.0,0.02352856]
[1747658261459,6.3062721,102290.0,102270.0,0.02352856]
[1747658261705,7.06279419,102290.0,102280.0,0.01048271]
[1747658261924,0.56421854,102280.0,102270.0,0.01874127]
[1747658262143,6.49576558,102280.0,102270.0,0.01874127]
[1747658262360,1.29800758,102280.0,102270.0,0.01874127]
[1747658262799,0.83220758,102280.0,102270.0,0.01874127]
[1747658263061,1.29760758,102280.0,102270.0,0.01874127]
[1747658263498,0.25257946,102270.0,102260.0,6e-05]
[1747658263709,0.75635754,102270.0,102260.0,6e-05]
[1747658264130,0.5044685,102270.0,102260.0,6e-05]
[1747658264366,0.84218858,102260.0,102250.0,0.005002]
[1747658265455,0.59029954,102260.0,102250.0,0.005002]
[1747658265672,1.30894858,102260.0,102250.0,0.005002]
[1747658266101,1.06705954,102260.0,102250.0,0.005002]
[1747658266524,1.15436894,102260.0,102250.0,0.005002]
[1747658266752,0.92308894,102260.0,102250.0,0.005002]
[1747658267617,0.90854809,102260.0,102250.0,0.005002]
[1747658268072,0.67306809,102260.0,102250.0,0.005002]
[1747658268707,1.10459665,102260.0,102250.0,0.005002]
[1747658269128,1.27321376,102260.0,102250.0,0.005002]
[1747658270042,1.19497798,102260.0,102250.0,0.005002]
[1747658270275,1.19897798,102260.0,102250.0,0.005002]
[1747658270729,0.94708894,102260.0,102250.0,0.005002]
[1747658270940,1.19897798,102260.0,102250.0,0.005002]
[1747658271156,1.29628738,102260.0,102250.0,0.005002]
[1747658271377,1.04080738,102260.0,102250.0,0.005002]
[1747658271582,0.95068894,102260.0,102250.0,0.005002]
[1747658271794,1.20257798,102260.0,102250.0,0.005002]
[1747658272243,0.95068894,102260.0,102250.0,0.005002]
[1747658272455,0.95668894,102260.0,102250.0,0.006002]
[1747658272663,1.30588738,102260.0,102250.0,0.006002]
[1747658274182,1.33524738,102260.0,102250.0,0.006002]
[1747658274825,1.33448738,102260.0,102250.0,0.006002]
[1747658278062,0.98528894,102260.0,102250.0,0.006002]
[1747658278303,1.23717798,102260.0,102250.0,0.006002]
[1747658280059,1.20657798,102260.0,102250.0,0.006002]
[1747658280488,0.95468894,102260.0,102250.0,0.006002]
[1747658280702,0.66806809,102260.0,102250.0,0.006002]
[1747658280933,0.90930809,102260.0,102250.0,0.006002]
[1747658281417,0.90886809,102260.0,102250.0,0.006002]
[1747658281626,0.56886809,102260.0,102250.0,0.006002]
[1747658283644,0.31266809,102260.0,102250.0,0.006002]
[1747658283844,0.56830809,102260.0,102250.0,0.006002]
[1747658285195,0.31266809,102260.0,102250.0,0.006002]
[1747658285811,0.32244679,102260.0,102250.0,0.21138087]
[1747658286026,0.32244679,102260.0,102250.0,0.006002]
[1747658286228,0.31644679,102260.0,102250.0,0.005002]
[1747658286429,0.31644679,102260.0,102250.0,0.24593971]
[1747658286619,0.31644679,102260.0,102250.0,0.57180102]
[1747658286620,0.33622578,102260.0,102250.0,0.57180102]
[1747658286823,0.33622578,102260.0,102250.0,0.59136063]
[1747658287243,0.32644708,102260.0,102250.0,0.59136082]
[1747658287459,0.33044708,102260.0,102250.0,0.70258097]
[1747658287668,0.32644708,102260.0,102250.0,0.497202]
[1747658287879,0.31666828,102260.0,102250.0,0.497202]
[1747658288293,0.31666828,102260.0,102250.0,0.482002]
[1747658288531,0.31666828,102260.0,102250.0,0.466002]
[1747658288982,0.30766828,102260.0,102250.0,0.127002]
[1747658289193,0.30366828,102260.0,102250.0,0.006002]
[1747658289413,0.30266828,102260.0,102250.0,0.005002]
[1747658290867,0.30566828,102260.0,102250.0,0.008002]
[1747658291720,0.30566828,102260.0,102250.0,0.01113067]
[1747658292305,0.30466828,102260.0,102250.0,0.00913067]
[1747658293113,0.30566828,102260.0,102250.0,0.01013067]
[1747658295995,0.93035732,102260.0,102250.0,0.01013067]
[1747658296448,0.93035732,102260.0,102250.0,0.007002]
[1747658297873,0.67846828,102260.0,102250.0,0.007002]
[1747658298094,0.93035732,102260.0,102250.0,0.007002]
[1747658298946,0.67846828,102260.0,102250.0,0.007002]
[1747658299164,0.64366828,102260.0,102250.0,0.006002]
[1747658299360,1.14650828,102260.0,102250.0,0.006002]
[1747658299570,0.80650828,102260.0,102250.0,0.006002]
[1747658299808,0.80550828,102260.0,102250.0,0.005002]
[1747658300415,0.80650828,102260.0,102250.0,0.006002]
[1747658300618,0.80750828,102260.0,102250.0,0.006002]
[1747658300823,0.82200828,102260.0,102250.0,0.005002]
[1747658301471,0.80640221,102260.0,102250.0,0.005002]
[1747658302985,0.80840221,102260.0,102250.0,0.006002]
[1747658305152,0.30556221,102260.0,102250.0,0.006002]
[1747658305380,0.80636221,102260.0,102250.0,0.006002]
[1747658306200,0.80580221,102260.0,102250.0,0.006002]
[1747658306421,0.31556221,102260.0,102250.0,0.038402]
[1747658307263,0.31556221,102260.0,102250.0,0.006002]
[1747658307520,0.30356221,102260.0,102250.0,0.005002]
[1747658307969,0.30356221,102260.0,102250.0,0.0081304]
[1747658308175,0.30456221,102260.0,102250.0,0.0091304]
[1747658308383,0.30356221,102260.0,102250.0,0.0091304]
[1747658308814,0.31356221,102260.0,102250.0,0.0091304]
[1747658309058,0.31356221,102260.0,102250.0,0.0404304]
[1747658310968,0.30456221,102260.0,102250.0,0.0101304]
[1747658311829,0.31456221,102260.0,102250.0,0.20572942]
[1747658312036,0.31456221,102260.0,102250.0,0.0414304]
[1747658312247,0.31456221,102260.0,102250.0,0.24680927]
[1747658312453,0.31456221,102260.0,102250.0,0.0414304]
[1747658312664,0.21735888,102260.0,102250.0,0.25903384]
[1747658312873,0.21735888,102260.0,102250.0,0.26636859]
[1747658313026,0.21735888,102260.0,102250.0,0.25658922]
[1747658313865,0.20757989,102260.0,102250.0,0.25658922]
[1747658314122,0.20757989,102260.0,102250.0,0.26636897]
[1747658314331,0.002,102260.0,102250.0,0.61614863]
[1747658314537,0.002,102260.0,102250.0,0.62592752]
[1747658314743,0.002,102260.0,102250.0,0.64046837]
[1747658314948,0.002,102260.0,102250.0,0.76046837]
[1747658315153,0.002,102260.0,102250.0,0.78757395]
[1747658315621,0.002,102260.0,102250.0,0.76046837]
[1747658315833,0.01955453,102270.0,102260.0,0.25661571]
[1747658315980,0.23467079,102270.0,102260.0,0.24683739]
[1747658316338,0.20535888,102260.0,102250.0,0.1598304]
[1747658316545,0.21513758,102260.0,102250.0,0.36520937]
[1747658316772,0.21513758,102260.0,102250.0,0.37498903]
[1747658317179,0.21713758,102260.0,102250.0,0.37798903]
[1747658317596,0.03133592,102260.0,102250.0,0.27754787]
[1747658317799,0.04111481,102260.0,102250.0,0.28218371]
[1747658319041,0.04111481,102260.0,102250.0,0.40218371]
[1747658319376,0.23669527,102260.0,102250.0,0.38262487]
[1747658320244,0.23669527,102260.0,102250.0,0.39240434]
[1747658320447,0.23669527,102260.0,102250.0,0.40218362]
[1747658320448,0.03133639,102260.0,102250.0,0.40218362]
[1747658320686,0.01177851,102260.0,102250.0,0.40218362]
[1747658320873,0.02155721,102260.0,102250.0,0.40218362]
[1747658321243,0.22691609,102260.0,102250.0,0.39240434]
[1747658321830,0.03133543,102260.0,102250.0,0.39240434]
[1747658322049,0.03133543,102260.0,102250.0,0.40218362]
[1747658322231,0.04111423,102260.0,102250.0,0.40218362]
[1747658322723,0.01177822,102260.0,102250.0,0.40218362]
[1747658322985,0.002,102260.0,102250.0,0.40218362]
[1747658323225,0.02155683,102260.0,102250.0,0.40565806]
[1747658324265,0.01177832,102260.0,102250.0,0.40565806]
[1747658324484,0.02155674,102260.0,102250.0,0.40565806]
[1747658325076,0.03133544,102260.0,102250.0,0.40565806]
[1747658325287,0.03133535,102260.0,102250.0,0.40565806]
[1747658325505,0.03122127,102260.0,102250.0,0.40565806]
[1747658325937,0.04100007,102260.0,102250.0,0.40565806]
[1747658326608,0.03122127,102260.0,102250.0,0.40565806]
[1747658328710,0.02144266,102260.0,102250.0,0.40565806]
[1747658328949,0.00188592,102260.0,102250.0,0.42019891]
[1747658329404,0.00188592,102260.0,102250.0,0.76019891]
[1747658330508,0.00188592,102260.0,102250.0,0.75672447]
[1747658332637,0.00188592,102260.0,102250.0,0.41672447]
[1747658332851,0.00188592,102260.0,102250.0,0.75672447]
[1747658333288,0.01151695,102260.0,102250.0,0.75202447]
[1747658333881,0.02129527,102260.0,102250.0,0.75202447]
[1747658334102,0.31418542,102260.0,102250.0,0.0064304]
[1747658334316,0.34058542,102260.0,102250.0,0.0064304]
[1747658335170,0.58348542,102260.0,102250.0,0.0064304]
[1747658335593,0.58348542,102260.0,102250.0,0.003302]
[1747658338916,0.58348542,102260.0,102250.0,0.00643048]
[1747658339540,0.82060542,102260.0,102250.0,0.00643048]
[1747658340549,0.58360542,102260.0,102250.0,0.00643048]
[1747658340791,0.81908542,102260.0,102250.0,0.00643048]
[1747658341182,0.81808542,102260.0,102250.0,0.00443048]
[1747658341396,0.8173466,102260.0,102250.0,0.00343048]
[1747658341608,0.8173466,102260.0,102250.0,0.000302]
[1747658342639,0.8223466,102260.0,102250.0,0.002302]
[1747658343638,0.8214466,102260.0,102250.0,0.002302]
[1747658344045,0.5536666,102260.0,102250.0,0.002302]
[1747658344222,0.7884666,102260.0,102250.0,0.002302]
[1747658344442,0.7884666,102260.0,102250.0,0.00543066]
[1747658344864,0.5536666,102260.0,102250.0,0.00543066]
[1747658345071,0.7980666,102260.0,102250.0,0.00543066]
[1747658345271,0.7880666,102260.0,102250.0,0.00543066]
[1747658345470,0.3265466,102260.0,102250.0,0.00543066]
[1747658345726,0.5606666,102260.0,102250.0,0.00543066]
[1747658346575,0.5771666,102260.0,102250.0,0.00543066]
[1747658347963,0.5935666,102260.0,102250.0,0.00543066]
[1747658349028,0.5606666,102260.0,102250.0,0.00543066]
[1747658349241,0.56046546,102260.0,102250.0,0.00543066]
[1747658350433,0.01477822,102260.0,102250.0,0.24014832]
[1747658350655,0.02455664,102260.0,102250.0,0.61194832]
[1747658350868,0.03433525,102260.0,102250.0,0.61194832]
[1747658351080,0.23969394,102260.0,102250.0,0.73194832]
[1747658351281,0.05389294,102260.0,102250.0,0.71664832]
[1747658351491,0.04411405,102260.0,102250.0,0.71664832]
[1747658352347,0.04411405,102260.0,102250.0,0.72128778]
[1747658352563,0.03433525,102260.0,102250.0,0.72128778]
[1747658352783,0.03433525,102260.0,102250.0,0.73748778]
[1747658353242,0.04411405,102260.0,102250.0,0.73748778]
[1747658353459,0.03433525,102260.0,102250.0,0.73748778]
[1747658354586,0.005,102260.0,102250.0,0.73748778]
[1747658354802,0.01477813,102260.0,102250.0,0.73748778]
[1747658355194,0.02155645,102260.0,102250.0,0.73648778]
[1747658355431,0.03133496,102260.0,102250.0,0.73648778]
[1747658355652,0.02155645,102260.0,102250.0,0.73648778]
[1747658355856,0.03233496,102260.0,102250.0,0.73748778]
[1747658356245,0.03033496,102260.0,102250.0,0.73648778]
[1747658356454,0.02055645,102260.0,102250.0,0.73648778]
[1747658356656,0.01077813,102260.0,102250.0,0.73648778]
[1747658356866,0.03033486,102260.0,102250.0,0.73648778]
[1747658357061,0.03133486,102260.0,102250.0,0.73648778]
[1747658357466,0.01177813,102260.0,102250.0,0.73648778]
[1747658357698,0.03133496,102260.0,102250.0,0.73648778]